Workbook

Sheet Hoja1
B1: Hospital General de Especialidades Dr. Mario Tolentino Dipp
A2: Gerencia de Estadística
A3: Consolidado Trimestral Enero-Diciembre 2024
A4: Servicios brindados | D4: Trimestres 2024 | H4: Total trimestres
D5: 1ero | E5: 2do | F5: 3er | G5: 4to
A6: Consulta | B6: Alergologia | E6: 0 | F6: 0 | G6: 0 | H6: =SUM(D6:G6) -> 0
B7: Anestesiologia y reanimación | D7: 0 | E7: 52 | F7: 118 | G7: 118 | H7: =SUM(D7:G7) -> 288
B8: Cardiologia | D8: 1,273 | E8: 1,107 | F8: 801 | G8: 836 | H8: 4,017
B9: Cirugia Pediatrica | D9: 0 | E9: 0 | F9: 0 | G9: 0 | H9: 0
B10: Cirugia Plastica-Reparadora | D10: 0 | E10: 0 | F10: 125 | G10: 103 | H10: 228
B11: Cirugía Maxilo-facial | D11: 0 | E11: 0 | F11: 0 | G11: 0 | H11: 0
B12: Dermatologia | D12: 219 | E12: 250 | F12: 200 | G12: 259 | H12: 928
B13: Endocrinologia | D13: 0 | E13: 0 | F13: 0 | G13: 0 | H13: 0
B14: Fisioterapia | D14: 0 | E14: 0 | F14: 0 | G14: 0 | H14: 0
B15: Gastroenterologia | D15: 739 | E15: 749 | F15: 632 | G15: 854 | H15: 2,974
B16: Genética | D16: 0 | E16: 0 | F16: 0 | G16: 0 | H16: 0
B17: Ginecología | D17: 659 | E17: 594 | F17: 540 | G17: 556 | H17: 2,349
B18: Hematologia | D18: 285 | E18: 231 | F18: 224 | G18: 199 | H18: 939
B19: Infectología | D19: 0 | E19: 0 | F19: 0 | G19: 0 | H19: 0
B20: Nefrologia | D20: 411 | E20: 349 | F20: 341 | G20: 303 | H20: 1,404
B21: Neonatología | D21: 0 | E21: 0 | F21: 0 | G21: 0 | H21: 0
B22: Neurocirugia | D22: 0 | E22: 0 | F22: 0 | G22: 0 | H22: 0
B23: Neurologia | D23: 624 | E23: 579 | F23: 610 | G23: 635 | H23: 2,448
B24: Neumologia | D24: 849 | E24: 729 | F24: 416 | G24: 293 | H24: 2,287
B25: Nutrición | D25: 0 | E25: 283 | F25: 315 | G25: 178 | H25: 776
B26: Odontologia | D26: 61 | E26: 59 | F26: 90 | G26: 575 | H26: 785
B27: Oncologia | D27: 0 | E27: 0 | F27: 6 | G27: 71 | H27: 77
B28: Ortopedia | D28: 0 | E28: 0 | F28: 0 | G28: 0 | H28: 0
B29: Otorrinolaringologia | D29: 37 | E29: 152 | F29: 321 | G29: 382 | H29: 892
B30: Pediatria | D30: 0 | E30: 0 | F30: 0 | G30: 0 | H30: 0
B31: Psicologia | D31: 173 | E31: 231 | F31: 195 | G31: 215 | H31: 814
B32: Urologia | D32: 430 | E32: 388 | F32: 534 | G32: 608 | H32: 1,960
B33: Otras | D33: 5,742 | E33: 5,313 | F33: 7060 | G33: 6,663 | H33: 24,778
A34: Subtotal consultas | D34: 11,502 | E34: 11,066 | F34: 13,352 | G34: 12,848 | H34: =SUM(D34:G34) -> 48,768
A35: Emergencias | D35: 6,070 | E35: 5,895 | F35: 7,097 | G35: 10,639 | H35: =SUM(D35:G35) -> 29,701
A36: Hospitalizaciones | D36: 284 | E36: 383 | F36: 541 | G36: 763 | H36: =SUM(D36:G36) -> 1,971
A37: Total de servicios | D37: 17,856 | E37: 17,344 | F37: 20,990 | G37: 24,249 | H37: =SUM(D37:G37) -> 80,439
A39: Otros servicios | C39: Primer Trimestre 2024 | G39: Total trimestres
C40: 1ero | D40: 2do | E40: 3er | F40: 4to
A41: Pruebas de Laboratorio | C41: 45,019 | D41: 52,980 | E41: 62,307 | F41: 67,325 | G41: =C41+D41+E41+F41 -> 227,631
A42: Estudios de Imágenes | C42: 40,381 | D42: 6,199 | E42: 5,467 | F42: 8,657 | G42: =C42+D42+E42+F42 -> 60,704
A43: Evaluaciones Cardiológicas | C43: 670 | D43: 653 | E43: 883 | F43: 505 | G43: =C43+D43+E43+F43 -> 2,711
A44: Procedimientos Quirúrgicos | C44: 0 | D44: 50 | E44: 171 | F44: 355 | G44: =C44+D44+E44+F44 -> 576
A45: Endoscopías | C45: 0 | D45: 0 | E45: 0 | F45: 0 | G45: =C45+D45+E45 -> 0
A46: Subtotal otros servicios | C46: 86,070 | D46: 59,882 | E46: =SUM(E41:E45) -> 68,828 | F46: =SUM(F41:F45) -> 76,842 | G46: =C46+D46+E46+F46 -> 291,622
B49: Noelia Cristina Núñez Puello | F49: Ginssellys Vasquez
B50: Técnico en datos estadísticos | F50: Representante de Planificación
